[Event "18th Izmir Open 2019"]
[Site "Izmir"]
[Date "2019.09.06"]
[Round "8.7"]
[White "Cakiroglu, Metin"]
[Black "Unat, Can Haktan"]
[Result "0-1"]
[ECO "A34"]
[WhiteElo "1934"]
[BlackElo "2100"]
[Annotator "ChessBase"]
[PlyCount "168"]
[EventDate "2019.09.02"]
[EventType "swiss"]
[EventCountry "TUR"]
[SourceTitle "playchess.com"]
[Source "ChessBase"]
[SourceQuality "1"]
[TimeControl "5400+30"]

1. c4 {[%emt 0:00:30]} e5 {[%emt 0:00:30]} 2. Nc3 {[%emt 0:00:30]} Nf6 {[%emt 0:00:00]} 3. e3 {[%emt 0:00:30]} c5 {[%emt 0:05:00]} 4. Nf3 {[%emt 0:01:30]} Nc6 {[%emt 0:00:30]} 5. d4 {[%emt 0:01:30]} cxd4 {[%emt 0:03:30]} 6. exd4 {[%emt 0:01:30]} exd4 {[%emt 0:00:30]} 7. Nxd4 {[%emt 0:00:30]} Bc5 {[%emt 0:00:30]} 8. Nb3 {[%emt 0:00:30]} Bb4 {[%emt 0:02:30]} 9. Be2 {[%emt 0:01:30]} d5 {[%emt 0:09:30]} 10. O-O {[%emt 0:05:30]} Be6 {[%emt 0:00:30]} 11. cxd5 {[%emt 0:01:30]} Nxd5 {[%emt 0:00:30]} 12. Nxd5 {[%emt 0:09:30]} Bxd5 {[%emt 0:02:30]} 13. Be3 {[%emt 0:07:30]} O-O {[%emt 0:01:30]} 14. Rc1 {[%emt 0:02:30]} Re8 {[%emt 0:03:30]} 15. Bf3 {[%emt 0:03:30]} Bxf3 {[%emt 0:07:30]} 16. Qxf3 {[%emt 0:00:30]} Qe7 {[%emt 0:00:30]} 17. Rfd1 {[%emt 0:11:30]} Rac8 {[%emt 0:04:30]} 18. Qf5 {[%emt 0:04:30]} Rcd8 {[%emt 0:02:30]} 19. h3 {[%emt 0:01:30]} h6 {[%emt 0:02:30]} 20. a3 {[%emt 0:09:30]} Bd6 {[%emt 0:00:00]} 21. Nc5 {[%emt 0:09:30]} Be5 {[%emt 0:02:00]} 22. Qc2 {[%emt 0:02:30]} Nd4 {[%emt 0:03:30]} 23. Bxd4 {[%emt 0:03:30]} Bxd4 {[%emt 0:02:30]} 24. Nd3 {[%emt 0:00:00]} Bb6 {[%emt 0:09:30]} 25. Re1 {[%emt 0:01:00]} Qg5 {[%emt 0:00:30]} 26. Rxe8+ {[%emt 0:00:46]} Rxe8 {[%emt 0:00:30]} 27. Re1 {[%emt 0:00:14]} Rd8 {[%emt 0:00:00]} 28. Re2 {[%emt 0:01:11]} Qg3 {[%emt 0:03:00]} 29. Ne1 {[%emt 0:01:05]} Qd6 {[%emt 0:03:30]} 30. a4 {[%emt 0:01:11]} Bc5 {[%emt 0:09:30]} 31. b3 {[%emt 0:00:51]} b6 {[%emt 0:01:30]} 32. Qc4 {[%emt 0:03:30]} Qf6 {[%emt 0:01:42]} 33. b4 {[%emt 0:02:24]} Rd4 {[%emt 0:01:52]} 34. Re8+ {[%emt 0:00:33]} Bf8 {[%emt 0:00:01]} 35. Qc3 {[%emt 0:02:54]} Qd6 {[%emt 0:00:52]} 36. Nc2 {[%emt 0:00:15]} Rd3 {[%emt 0:00:23]} 37. Qc4 {[%emt 0:00:57]} Rd1+ {[%emt 0:00:17]} 38. Ne1 {[%emt 0:00:29]} Rd4 {[%emt 0:00:43]} 39. Qa6 {[%emt 0:00:52]} Qd7 {[%emt 0:01:09]} 40. Ra8 {[%emt 0:01:05]} Rxb4 {[%emt 0:00:19]} 41. Qxa7 {[%emt 0:00:18]} Qxa7 {[%emt 0:01:09]} 42. Rxa7 {[%emt 0:00:30]} Rb1 {[%emt 0:00:00]} 43. Kf1 {[%emt 0:00:07]} Bb4 {[%emt 0:00:15]} 44. Ra8+ {[%emt 0:00:30]} Kh7 {[%emt 0:00:30]} 45. Re8 {[%emt 0:00:30]} Ra1 {[%emt 0:00:00]} 46. Re4 {[%emt 0:00:00]} Bxe1 {[%emt 0:03:27]} 47. Rxe1 {[%emt 0:00:00]} Rxa4 {[%emt 0:00:00]} 48. Rb1 {[%emt 0:01:34]} Ra6 {[%emt 0:00:00]} 49. Ke2 {[%emt 0:00:17]} Kg6 {[%emt 0:00:00]} 50. Kd3 {[%emt 0:00:12]} Kf5 {[%emt 0:00:10]} 51. Rb2 {[%emt 0:00:32]} f6 {[%emt 0:02:15]} 52. Kc4 {[%emt 0:01:16]} Ra5 {[%emt 0:00:11]} 53. Kd4 {[%emt 0:03:07]} Re5 {[%emt 0:02:32]} 54. Rxb6 {[%emt 0:03:02]} Re2 {[%emt 0:00:01]} 55. Rb3 {[%emt 0:00:39]} Rxf2 {[%emt 0:00:17]} 56. Rg3 {[%emt 0:00:54]} g5 {[%emt 0:00:20]} 57. Ke3 {[%emt 0:00:43]} Ra2 {[%emt 0:00:23]} 58. Kd4 {[%emt 0:00:33]} h5 {[%emt 0:00:53]} 59. Rf3+ {[%emt 0:01:40]} Kg6 {[%emt 0:00:13]} 60. g3 {[%emt 0:01:34]} Rh2 {[%emt 0:00:05]} 61. h4 {[%emt 0:00:16]} gxh4 {[%emt 0:00:30]} 62. gxh4 {[%emt 0:00:00]} Rxh4+ {[%emt 0:00:06]} 63. Ke3 {[%emt 0:00:00]} Kg5 {[%emt 0:00:00]} 64. Rg3+ {[%emt 0:00:43]} Rg4 {[%emt 0:00:15]} 65. Rh3 {[%emt 0:00:00]} h4 {[%emt 0:00:00]} 66. Kf2 {[%emt 0:00:20]} Ra4 {[%emt 0:00:20]} 67. Rb3 {[%emt 0:00:20]} Kg4 {[%emt 0:00:08]} 68. Kg2 {[%emt 0:00:23]} f5 {[%emt 0:00:23]} 69. Rb8 {[%emt 0:00:48]} Ra2+ {[%emt 0:00:30]} 70. Kg1 {[%emt 0:00:00]} f4 {[%emt 0:00:32]} 71. Rb3 {[%emt 0:00:00]} Re2 {[%emt 0:00:19]} 72. Ra3 {[%emt 0:00:37]} Re3 {[%emt 0:00:31]} 73. Ra8 {[%emt 0:00:36]} Kf3 {[%emt 0:00:49]} 74. Rh8 {[%emt 0:00:15]} Re1+ {[%emt 0:00:05]} 75. Kh2 {[%emt 0:00:09]} Ke3 {[%emt 0:00:40]} 76. Rf8 {[%emt 0:02:24]} f3 {[%emt 0:01:07]} 77. Re8+ {[%emt 0:01:01]} Kd2 {[%emt 0:00:19]} 78. Rd8+ {[%emt 0:00:14]} Ke2 {[%emt 0:00:07]} 79. Re8+ {[%emt 0:00:44]} Kf1 {[%emt 0:00:02]} 80. Rf8 {[%emt 0:00:32]} f2 {[%emt 0:00:07]} 81. Rf7 {[%emt 0:01:28]} Ke2 {[%emt 0:00:14]} 82. Re7+ {[%emt 0:00:48]} Kd3 {[%emt 0:00:09]} 83. Rf7 {[%emt 0:00:11]} f1=Q {[%emt 0:00:54]} 84. Rf3+ {[%emt 0:00:16]} Kd2 {[%emt 0:00:12]} 0-1

[Event "18th Izmir Open 2019"]
[Site "Izmir"]
[Date "2019.09.06"]
[Round "8.8"]
[White "Isilak, Enes"]
[Black "Mammadov, Mustafa"]
[Result "0-1"]
[ECO "D78"]
[WhiteElo "1885"]
[BlackElo "2061"]
[Annotator "NA"]
[PlyCount "104"]
[EventDate "2019.09.02"]
[EventType "swiss"]
[EventCountry "TUR"]
[SourceTitle "playchess.com"]
[Source "ChessBase"]
[SourceQuality "1"]
[TimeControl "5400+30"]

1. d4 {[%emt 0:00:30]} Nf6 {[%emt 0:05:30]} 2. Nf3 {[%emt 0:00:30]} g6 {[%emt 0:00:30]} 3. c4 {[%emt 0:00:30]} Bg7 {[%emt 0:00:30]} 4. g3 {[%emt 0:00:30]} c6 {[%emt 0:04:30]} 5. Bg2 {[%emt 0:00:00]} d5 {[%emt 0:00:30]} 6. Qb3 {[%emt 0:05:00]} O-O {[%emt 0:05:30]} 7. O-O {[%emt 0:00:30]} dxc4 {[%emt 0:02:30]} 8. Qxc4 {[%emt 0:00:30]} Be6 {[%emt 0:00:30]} 9. Qa4 {[%emt 0:05:30]} Qb6 {[%emt 0:17:30]} 10. Nc3 {[%emt 0:07:30]} Qa6 {[%emt 0:08:30] D78: Fianchetto Grünfeld: 6 0-0 c6} (10... Na6 11. Rd1 Rfd8 12. h3 c5 13. dxc5 Nxc5 14. Rxd8+ Rxd8 15. Qa3 Nfe4 16. Be3 Nxc3 17. bxc3 Rc8 18. Ng5 Qc7 19. Qxa7 {1-0 (27) Wojtaszek,R (2705)-Melkumyan,H (2615) Warsaw 2011}) 11. Qc2 {[%emt 0:08:30]} Nd5 {[%emt 0:04:30]} 12. Rd1 {[%emt 0:46:30]} Nd7 {[%emt 0:21:30]} 13. Bf1 $146 {[%emt 0:08:25]} ({Predecessor:} 13. e4 Nxc3 14. bxc3 b5 15. Be3 Nb6 16. Nd2 Qc8 17. f4 f5 {1-0 (31) Akbarinia,S (2371)-Serra Pages,J (2239) Barcelona 2018}) 13... Nb4 {[%emt 0:09:21]} 14. Qb1 {[%emt 0:05:35]} Nf6 {[%emt 0:04:32]} 15. e4 {[%emt 0:01:51]} Qa5 {[%emt 0:03:05]} 16. a3 {[%emt 0:01:22]} Na6 {[%emt 0:00:09]} 17. Bg2 {[%emt 0:03:03]} Rad8 {[%emt 0:01:07]} 18. Be3 {[%emt 0:01:51]} h6 {[%emt 0:01:46]} 19. Ne5 {[%emt 0:00:37]} Bb3 {[%emt 0:03:53]} 20. Rd2 {[%emt 0:00:39]} Nd7 {[%emt 0:01:09]} 21. Nf3 {[%emt 0:00:29]} Nb6 {[%emt 0:01:15]} 22. Bf1 {[%emt 0:00:30]} Nc4 {[%emt 0:00:24]} 23. Bxc4 {[%emt 0:00:22]} Bxc4 {[%emt 0:00:04]} 24. Kg2 {[%emt 0:00:35]} Qh5 {[%emt 0:01:08]} 25. Qd1 {[%emt 0:00:36]} Be6 {[%emt 0:01:01]} 26. Ng1 {[%emt 0:00:01]} Qa5 {[%emt 0:00:15]} 27. b4 {[%emt 0:00:47]} Qc7 {[%emt 0:00:11]} 28. Rc1 {[%emt 0:00:00]} Qb8 {[%emt 0:01:19]} 29. Bf4 {[%emt 0:00:18]} Qa8 {[%emt 0:00:27]} 30. f3 {[%emt 0:01:38]} g5 $11 {[%emt 0:00:17]} 31. Be3 {[%emt 0:00:00]} f5 {[%emt 0:01:00]} 32. d5 {[%emt 0:00:30]} Bc8 {[%emt 0:01:04]} 33. dxc6 {[%emt 0:00:23]} Rxd2+ {[%emt 0:00:40]} 34. Qxd2 {[%emt 0:00:02]} bxc6 {[%emt 0:00:00]} 35. Qd3 {[%emt 0:00:54]} Nc7 {[%emt 0:00:35]} 36. Bc5 {[%emt 0:00:46]} Ne6 {[%emt 0:00:30]} 37. Bxe7 {[%emt 0:00:20]} Rf7 {[%emt 0:00:32]} 38. Bd6 {[%emt 0:00:49]} g4 {[%emt 0:00:42]} 39. exf5 {[%emt 0:00:27]} Nd4 {[%emt 0:00:28]} 40. fxg4 {[%emt 0:01:01]} c5+ {[%emt 0:00:11]} 41. Kh3 {[%emt 0:00:00]} h5 {[%emt 0:00:24]} 42. Qe4 {[%emt 0:00:33]} hxg4+ {[%emt 0:00:49]} 43. Kh4 {[%emt 0:00:10]} Nxf5+ {[%emt 0:00:30]} 44. Kh5 {[%emt 0:00:33]} Bb7 {[%emt 0:00:27]} 45. Qe6 {[%emt 0:00:47]} Nd4 {[%emt 0:00:40]} 46. Qg6 {[%emt 0:00:33]} Rf6 {[%emt 0:00:31]} 47. Qxg4 {[%emt 0:00:32]} Rh6+ {[%emt 0:00:47]} 48. Kg5 {[%emt 0:00:02]} Qd8+ {[%emt 0:00:20]} 49. Kf4 {[%emt 0:00:00]} Qxd6+ {[%emt 0:00:20]} 50. Ke3 {[%emt 0:00:08]} Rf6 {[%emt 0:00:15]} 51. bxc5 {[%emt 0:00:51]} Qxc5 {[%emt 0:00:32]} 52. Nge2 {[%emt 0:00:32]} Nxe2+ {[%emt 0:00:26]} 0-1

[Event "18th Izmir Open 2019"]
[Site "Izmir"]
[Date "2019.09.06"]
[Round "8.9"]
[White "Kayan, Veli"]
[Black "Inan, Canberk"]
[Result "1/2-1/2"]
[ECO "B49"]
[WhiteElo "1928"]
[BlackElo "1912"]
[Annotator "NA"]
[PlyCount "81"]
[EventDate "2019.09.02"]
[EventType "swiss"]
[EventCountry "TUR"]
[SourceTitle "playchess.com"]
[Source "ChessBase"]
[SourceQuality "1"]
[TimeControl "5400+30"]

1. e4 {[%emt 0:00:30]} c5 {[%emt 0:00:30]} 2. Nf3 {[%emt 0:00:00]} e6 {[%emt 0:00:00]} 3. d4 {[%emt 0:01:00]} cxd4 {[%emt 0:01:00]} 4. Nxd4 {[%emt 0:00:30]} a6 {[%emt 0:00:00]} 5. Nc3 {[%emt 0:03:30]} Qc7 {[%emt 0:00:00]} 6. Be3 {[%emt 0:04:30]} Nc6 {[%emt 0:00:30]} 7. Be2 {[%emt 0:01:30]} Nf6 {[%emt 0:00:30]} 8. O-O {[%emt 0:01:30]} Be7 {[%emt 0:00:30]} 9. a4 {[%emt 0:00:30]} b6 {[%emt 0:03:30]} 10. Nxc6 $11 {[%emt 0:01:30]} dxc6 {[%emt 0:00:30]} 11. a5 {[%emt 0:06:30]} bxa5 {[%emt 0:02:30]} 12. Qd4 {[%emt 0:08:30]} O-O {[%emt 0:04:30]} 13. Qc4 {[%emt 0:14:30]} Rb8 {[%emt 0:04:30]} 14. e5 {[%emt 0:08:30]} Nd5 {[%emt 0:01:30]} 15. Nxd5 {[%emt 0:13:30]} exd5 {[%emt 0:00:00]} 16. Qc3 {[%emt 0:01:30]} Rb4 {[%emt 0:11:00]} 17. f4 {[%emt 0:02:30]} c5 {[%emt 0:06:30]} 18. Bd2 {[%emt 0:01:30]} c4 {[%emt 0:04:30]} 19. Qg3 {[%emt 0:02:30]} Rxb2 {[%emt 0:01:30]} 20. f5 {[%emt 0:05:30]} f6 {[%emt 0:00:30]} 21. Bf4 {[%emt 0:02:26]} fxe5 {[%emt 0:09:30]} 22. Bxe5 {[%emt 0:01:00]} Qb6+ {[%emt 0:00:00]} 23. Kh1 {[%emt 0:01:44]} Bf6 {[%emt 0:00:00]} 24. Bxb2 {[%emt 0:01:22]} Qxb2 {[%emt 0:00:00]} 25. Bf3 {[%emt 0:02:12]} Bxf5 {[%emt 0:02:00]} 26. Bxd5+ {[%emt 0:02:47]} Kh8 {[%emt 0:00:30]} 27. Rae1 {[%emt 0:02:19]} g6 {[%emt 0:15:30]} 28. Qd6 {[%emt 0:00:56]} Qb4 {[%emt 0:00:30]} 29. Qxa6 {[%emt 0:01:12]} Bxc2 {[%emt 0:01:30]} 30. Re8 {[%emt 0:01:14]} Kg7 {[%emt 0:00:30]} 31. Qa7+ {[%emt 0:01:57]} Kh6 {[%emt 0:01:30]} 32. Qe3+ {[%emt 0:01:45]} Kg7 {[%emt 0:00:00]} 33. Qa7+ {[%emt 0:01:11]} Kh6 {[%emt 0:00:00]} 34. Rxf8 {[%emt 0:02:15]} Qxf8 {[%emt 0:00:30]} 35. Bxc4 {[%emt 0:00:47]} Qd8 {[%emt 0:01:30]} 36. Qf7 {[%emt 0:01:21]} Bf5 {[%emt 0:00:30]} 37. Bd5 {[%emt 0:00:37]} Qe7 {[%emt 0:00:30]} 38. Qxe7 {[%emt 0:00:56]} Bxe7 {[%emt 0:00:30]} 39. Bb3 {[%emt 0:00:51]} Kg5 {[%emt 0:00:30]} 40. Re1 {[%emt 0:00:38]} Bb4 {[%emt 0:00:00]} 41. Re8 {[%emt 0:00:00]} 1/2-1/2

[Event "18th Izmir Open 2019"]
[Site "Izmir"]
[Date "2019.09.07"]
[Round "9.5"]
[White "Demirbag, Alihan"]
[Black "Salman, Ilhan Serhat"]
[Result "1-0"]
[ECO "B01"]
[WhiteElo "2121"]
[BlackElo "2037"]
[Annotator "RC"]
[PlyCount "115"]
[EventDate "2019.09.02"]
[EventType "swiss"]
[EventCountry "TUR"]
[SourceTitle "playchess.com"]
[Source "ChessBase"]
[SourceQuality "1"]
[TimeControl "5400+30"]

1. e4 {[%emt 0:00:30]} d5 {[%emt 0:02:30]} 2. exd5 {[%emt 0:00:30]} Qxd5 {[%emt 0:00:30]} 3. Nc3 {[%emt 0:01:30]} Qd8 {[%emt 0:00:30]} 4. d4 {[%emt 0:04:30]} Nf6 {[%emt 0:00:30]} 5. Nf3 {[%emt 0:01:30]} g6 {[%emt 0:01:30]} 6. Be3 {[%emt 0:02:30]} Bg7 {[%emt 0:01:30]} 7. Qd2 {[%emt 0:01:30]} O-O {[%emt 0:01:30]} 8. Be2 {[%emt 0:08:30]} a6 {[%emt 0:11:30]} 9. Ne5 {[%emt 0:03:30]} Nbd7 {[%emt 0:02:30]} 10. f4 {[%emt 0:03:30]} Nb6 {[%emt 0:05:30]} 11. O-O {[%emt 0:04:30]} Nfd5 {[%emt 0:04:30]} 12. Nxd5 {[%emt 0:01:30]} Nxd5 {[%emt 0:00:00]} 13. Bf2 {[%emt 0:04:30]} f6 {[%emt 0:05:00]} 14. Nd3 {[%emt 0:03:30]} Rb8 {[%emt 0:21:30]} 15. c4 {[%emt 0:02:30]} Nb6 {[%emt 0:00:30]} 16. Rac1 {[%emt 0:00:30]} Be6 {[%emt 0:01:30]} 17. b3 {[%emt 0:01:30]} Bf7 {[%emt 0:00:30]} 18. Rfd1 {[%emt 0:03:30]} e6 {[%emt 0:06:30]} 19. Bf3 {[%emt 0:03:30]} Nc8 {[%emt 0:04:30]} 20. Nc5 {[%emt 0:03:30]} Nd6 {[%emt 0:03:30]} 21. Re1 {[%emt 0:02:30]} Re8 {[%emt 0:01:30]} 22. Re2 {[%emt 0:02:30]} e5 {[%emt 0:04:51]} 23. fxe5 {[%emt 0:00:30]} fxe5 {[%emt 0:00:06]} 24. d5 {[%emt 0:00:30]} Nf5 {[%emt 0:02:22]} 25. Rce1 {[%emt 0:01:30]} h5 {[%emt 0:10:47]} 26. Nd3 {[%emt 0:04:30]} Nh4 {[%emt 0:06:27]} 27. Be4 {[%emt 0:05:30]} Kh7 {[%emt 0:00:54]} 28. g3 {[%emt 0:03:30]} Nf5 {[%emt 0:00:47]} 29. Bxf5 {[%emt 0:00:00]} gxf5 {[%emt 0:00:00]} 30. Nxe5 {[%emt 0:00:00]} Bxe5 {[%emt 0:00:35]} 31. Rxe5 {[%emt 0:00:00]} Qf6 {[%emt 0:00:30]} 32. Qf4 {[%emt 0:01:00]} Rxe5 {[%emt 0:00:30]} 33. Rxe5 {[%emt 0:00:30]} Kg6 {[%emt 0:00:05]} 34. Bd4 {[%emt 0:00:30]} Qg5 {[%emt 0:00:18]} 35. Qxg5+ {[%emt 0:01:30]} Kxg5 {[%emt 0:00:05]} 36. Re7 {[%emt 0:00:30]} Kg6 {[%emt 0:01:16]} 37. Rxc7 {[%emt 0:00:30]} b5 {[%emt 0:00:14]} 38. Rc6+ {[%emt 0:01:30]} Kg5 {[%emt 0:00:06]} 39. Be3+ {[%emt 0:00:30]} Kg4 {[%emt 0:00:38]} 40. Kg2 {[%emt 0:00:30]} f4 {[%emt 0:00:30]} 41. Bxf4 {[%emt 0:00:00]} Re8 {[%emt 0:00:13]} 42. h3+ {[%emt 0:01:00]} Kf5 {[%emt 0:00:30]} 43. Kf3 {[%emt 0:00:00]} Rg8 {[%emt 0:00:52]} 44. Rxa6 {[%emt 0:00:00]} bxc4 {[%emt 0:00:30]} 45. bxc4 {[%emt 0:00:00]} Rg7 {[%emt 0:00:55]} 46. a4 {[%emt 0:00:00]} Be8 {[%emt 0:01:07]} 47. a5 {[%emt 0:00:30]} Ba4 {[%emt 0:00:00]} 48. Rh6 {[%emt 0:02:30]} Bd1+ {[%emt 0:00:22]} 49. Ke3 {[%emt 0:00:30]} Re7+ {[%emt 0:00:03]} 50. Re6 {[%emt 0:01:30]} Rb7 {[%emt 0:00:32]} 51. Kd4 {[%emt 0:00:30]} Bf3 {[%emt 0:00:50]} 52. a6 {[%emt 0:00:00]} Rb1 {[%emt 0:00:20]} 53. Kc5 {[%emt 0:01:00]} Ra1 {[%emt 0:00:51]} 54. Kb6 {[%emt 0:00:30]} Bg2 {[%emt 0:00:44]} 55. a7 {[%emt 0:00:30]} h4 {[%emt 0:00:31]} 56. Kb7 {[%emt 0:00:30]} hxg3 {[%emt 0:00:33]} 57. Bxg3 {[%emt 0:00:00]} Bxd5+ {[%emt 0:00:24]} 58. cxd5 {[%emt 0:00:00]} 1-0

[Event "18th Izmir Open 2019"]
[Site "Izmir"]
[Date "2019.09.07"]
[Round "9.6"]
[White "Unat, Can Haktan"]
[Black "Bicer, Atakan Mert"]
[Result "1-0"]
[ECO "B82"]
[WhiteElo "2100"]
[BlackElo "2035"]
[Annotator "RC"]
[PlyCount "119"]
[EventDate "2019.09.02"]
[EventType "swiss"]
[EventCountry "TUR"]
[SourceTitle "playchess.com"]
[Source "ChessBase"]
[SourceQuality "1"]
[TimeControl "5400+30"]

1. e4 {[%emt 0:00:30]} c5 {[%emt 0:00:30]} 2. Nf3 {[%emt 0:00:30]} e6 {[%emt 0:00:30]} 3. d4 {[%emt 0:00:30]} cxd4 {[%emt 0:00:30]} 4. Nxd4 {[%emt 0:00:30]} Nc6 {[%emt 0:00:30]} 5. Nc3 {[%emt 0:00:30]} Qc7 {[%emt 0:00:30]} 6. f4 {[%emt 0:00:30]} d6 {[%emt 0:00:00]} 7. Nf3 {[%emt 0:00:00]} a6 {[%emt 0:00:00]} 8. Bd3 {[%emt 0:00:00]} Nf6 {[%emt 0:00:30]} 9. O-O {[%emt 0:00:30]} Be7 {[%emt 0:00:30]} 10. Qe1 {[%emt 0:00:00]} Nb4 {[%emt 0:08:30]} 11. Bd2 {[%emt 0:00:00]} Nxd3 {[%emt 0:00:30]} 12. cxd3 {[%emt 0:00:00]} O-O {[%emt 0:00:30]} 13. Kh1 {[%emt 0:00:00]} Rd8 {[%emt 0:00:30]} 14. Rc1 {[%emt 0:00:30]} Qb8 {[%emt 0:00:30]} 15. Ne2 {[%emt 0:00:30]} b6 {[%emt 0:00:30]} 16. Ned4 {[%emt 0:00:30]} Bb7 {[%emt 0:00:30]} 17. Nc6 {[%emt 0:00:30]} Bxc6 {[%emt 0:00:30]} 18. Rxc6 {[%emt 0:00:30]} Qb7 {[%emt 0:00:30]} 19. Rc1 {[%emt 0:11:30]} Rac8 {[%emt 0:17:30]} 20. Bc3 {[%emt 0:00:30]} Rd7 {[%emt 0:16:30]} 21. Qg3 {[%emt 0:07:30]} Rdc7 {[%emt 0:01:30]} 22. Rce1 {[%emt 0:00:00]} d5 {[%emt 0:14:30]} 23. e5 {[%emt 0:03:00]} Nh5 {[%emt 0:00:30]} 24. Qg4 {[%emt 0:03:30]} g6 {[%emt 0:00:30]} 25. Nd4 {[%emt 0:08:30]} Ng7 {[%emt 0:00:30]} 26. Qf3 {[%emt 0:00:30]} h5 {[%emt 0:01:30]} 27. g3 {[%emt 0:08:30]} Rxc3 {[%emt 0:19:11]} 28. bxc3 {[%emt 0:00:30]} Rxc3 {[%emt 0:00:00]} 29. h3 {[%emt 0:00:00]} b5 {[%emt 0:00:43]} 30. g4 {[%emt 0:00:00]} hxg4 {[%emt 0:01:23]} 31. hxg4 {[%emt 0:00:30]} Qb6 {[%emt 0:00:00]} 32. Ne2 {[%emt 0:00:30]} Ra3 {[%emt 0:00:00]} 33. Rc1 {[%emt 0:00:30]} Rxa2 {[%emt 0:02:54]} 34. Rc8+ {[%emt 0:00:30]} Bf8 {[%emt 0:00:48]} 35. Ng3 {[%emt 0:11:30]} b4 {[%emt 0:01:16]} 36. f5 {[%emt 0:00:30]} exf5 {[%emt 0:00:57]} 37. gxf5 {[%emt 0:03:30]} gxf5 {[%emt 0:00:30]} 38. Nh5 {[%emt 0:00:00]} Qh6 {[%emt 0:02:21]} 39. Rg1 {[%emt 0:00:00]} Ra1 {[%emt 0:02:43]} 40. Rxa1 {[%emt 0:02:30]} Nxh5 {[%emt 0:00:04]} 41. Qh3 {[%emt 0:01:30]} Ng3+ {[%emt 0:04:28]} 42. Kh2 {[%emt 0:00:30]} Qxh3+ {[%emt 0:00:30]} 43. Kxh3 {[%emt 0:00:00]} Ne2 {[%emt 0:00:01]} 44. Rxa6 {[%emt 0:00:00]} Kg7 {[%emt 0:00:07]} 45. Raa8 {[%emt 0:03:30]} Nf4+ {[%emt 0:02:09]} 46. Kg3 {[%emt 0:00:30]} Ng6 {[%emt 0:00:12]} 47. Rd8 {[%emt 0:00:30]} d4 {[%emt 0:01:35]} 48. Rxd4 {[%emt 0:00:30]} Nxe5 {[%emt 0:00:25]} 49. Kf4 {[%emt 0:00:30]} Nc6 {[%emt 0:00:28]} 50. Rd5 {[%emt 0:01:30]} b3 {[%emt 0:00:33]} 51. Ra1 {[%emt 0:02:30]} Nb4 {[%emt 0:01:07]} 52. Rg1+ {[%emt 0:01:30]} Kf6 {[%emt 0:00:27]} 53. Rxf5+ {[%emt 0:00:30]} Ke6 {[%emt 0:00:04]} 54. Re5+ {[%emt 0:02:30]} Kd6 {[%emt 0:00:30]} 55. Ke4 {[%emt 0:00:30]} Na2 {[%emt 0:01:01]} 56. Re8 {[%emt 0:00:30]} Bh6 {[%emt 0:00:51]} 57. Rb8 {[%emt 0:00:00]} Nc1 {[%emt 0:00:36]} 58. Rf1 {[%emt 0:00:00]} Ke7 {[%emt 0:00:54]} 59. Rb7+ {[%emt 0:00:30]} Kd6 {[%emt 0:00:11]} 60. Rf6+ {[%emt 0:00:30]} 1-0

[Event "18th Izmir Open 2019"]
[Site "Izmir"]
[Date "2019.09.07"]
[Round "9.7"]
[White "Gonullu, Muhammed Sinan"]
[Black "Mohannad, Farhan"]
[Result "1/2-1/2"]
[ECO "A45"]
[WhiteElo "1796"]
[BlackElo "2094"]
[Annotator "NA RC"]
[PlyCount "91"]
[EventDate "2019.09.02"]
[EventType "swiss"]
[EventCountry "TUR"]
[SourceTitle "playchess.com"]
[Source "ChessBase"]
[SourceQuality "1"]
[TimeControl "5400+30"]

1. d4 {[%emt 0:03:30]} g6 {[%emt 0:00:30]} 2. Bg5 {[%emt 0:00:30]} Bg7 {[%emt 0:00:00]} 3. c3 {[%emt 0:00:00]} d6 {[%emt 0:00:00]} 4. Nd2 {[%emt 0:00:00]} Nf6 {[%emt 0:00:30]} 5. e3 {[%emt 0:00:00]} c5 {[%emt 0:00:30]} 6. dxc5 {[%emt 0:00:00]} dxc5 {[%emt 0:00:30]} 7. Bxf6 {[%emt 0:00:00]} Bxf6 {[%emt 0:01:30]} 8. Ne4 {[%emt 0:00:00]} Qxd1+ {[%emt 0:01:30]} 9. Rxd1 {[%emt 0:00:00]} b6 {[%emt 0:00:30]} 10. Bb5+ {[%emt 0:00:00]} Bd7 {[%emt 0:00:30]} 11. Nxf6+ {[%emt 0:00:30]} exf6 {[%emt 0:00:00]} 12. Bxd7+ {[%emt 0:00:30]} Nxd7 {[%emt 0:00:00]} 13. Nf3 {[%emt 0:00:00]} Ke7 {[%emt 0:07:30]} 14. Ke2 {[%emt 0:00:00]} b5 {[%emt 0:00:30]} 15. Rd5 {[%emt 0:00:30]} Rhc8 {[%emt 0:00:30]} 16. Rhd1 {[%emt 0:01:30]} Nb6 {[%emt 0:00:30]} 17. R5d2 {[%emt 0:00:00]} Rc7 {[%emt 0:01:30]} 18. a3 {[%emt 0:01:00]} Nc4 {[%emt 0:01:30]} 19. Rc2 {[%emt 0:00:30]} Nb6 {[%emt 0:11:30]} 20. Ne1 {[%emt 0:00:30]} c4 {[%emt 0:03:30]} 21. Rd4 {[%emt 0:01:30]} Rd8 {[%emt 0:02:30]} 22. Rcd2 {[%emt 0:03:30]} Rxd4 {[%emt 0:07:30]} 23. exd4 {[%emt 0:00:30]} Nd5 {[%emt 0:00:00]} 24. Nc2 {[%emt 0:01:30]} a5 {[%emt 0:01:00]} 25. g3 {[%emt 0:00:30]} Rb7 {[%emt 0:00:30]} 26. Ne3 {[%emt 0:00:00]} Kd6 {[%emt 0:00:00]} 27. Kd1 {[%emt 0:02:00]} Nxe3+ {[%emt 0:05:00]} 28. fxe3 {[%emt 0:00:30]} Re7 {[%emt 0:00:30]} 29. Ke2 {[%emt 0:00:30]} f5 {[%emt 0:00:30]} 30. Rd1 {[%emt 0:00:30]} Kd5 {[%emt 0:00:30]} 31. h4 {[%emt 0:01:30]} h5 {[%emt 0:00:30]} 32. Kf3 {[%emt 0:00:30]} f6 {[%emt 0:00:30]} 33. Rh1 {[%emt 0:00:30]} Rb7 {[%emt 0:01:30]} 34. Ra1 {[%emt 0:00:30]} g5 {[%emt 0:05:30]} 35. hxg5 {[%emt 0:00:30]} fxg5 {[%emt 0:00:30]} 36. Rh1 {[%emt 0:00:30]} Rh7 {[%emt 0:00:30]} 37. Rh2 {[%emt 0:00:00]} Ke6 {[%emt 0:12:30]} 38. e4 {[%emt 0:01:00]} Kf6 {[%emt 0:00:30]} 39. exf5 {[%emt 0:00:30]} Kxf5 {[%emt 0:00:30]} 40. Re2 {[%emt 0:52:30]} g4+ {[%emt 0:00:30]} 41. Kg2 {[%emt 0:01:30]} Rb7 {[%emt 0:00:30]} 42. Re5+ {[%emt 0:00:30]} Kg6 {[%emt 0:00:30]} 43. Re6+ {[%emt 0:00:30]} Kf5 {[%emt 0:00:30]} 44. Re5+ {[%emt 0:00:30]} Kg6 {[%emt 0:00:30]} 45. Re6+ {[%emt 0:00:00]} Kf5 {[%emt 0:00:30]} 46. Re5+ {[%emt 0:00:00]} 1/2-1/2